Cogmind - Beta 17.1 @@@ ROGUE MODE // 2026.08.28 @ 16:16:03 Player: Bsuter Result: Destroyed by as-47146 with Assembled Blade Performance ------------- Evolutions (0) 0 Regions Visited (2) 400 Robots Destroyed (26) 130 Value Destroyed (682) 682 Prototype IDs (0) 0 Alien Tech Used (0) 0 Bonus (0) 0 TOTAL SCORE: 1212 Bonus ------- None Cogmind --------- Core Integrity 0/250 Matter 300/300 Energy 90/100 System Corruption 0% Temperature Cool (20) Movement Walking (120) Location -10/Mines Parts ------- > --- POWER (1) -------- (None) > --- PROPULSION (2) --- Aluminum Leg > --- UTILITY (2) ------ Sensor Array Signal Interpreter > --- WEAPON (2) ------- Small Laser Particle Gun > --- INVENTORY (5) ---- Ion Engine Compact Wheel ECM Suite Grenade Launcher Mining Laser Peak State ------------ > --- POWER ------------ Light Nuclear Core > --- PROPULSION ------- Aluminum Leg Aluminum Leg > --- UTILITY ---------- Sensor Array Signal Interpreter > --- WEAPON ----------- Small Laser Particle Gun > --- INVENTORY -------- Ion Engine Compact Wheel ECM Suite Grenade Launcher Mining Laser [Rating: 10] Favorites ----------- Power Light Ion Engine Engine Light Ion Engine Power Core Light Nuclear Core Propulsion Aluminum Leg Leg Aluminum Leg Utility Sensor Array Device Sensor Array Processor Signal Interpreter Weapon Small Laser Energy Gun Small Laser Ballistic Gun Light Assault Rifle Special Weapon Mining Laser Build | -11 -10 -10 ------- Run | Yrd Mat Min Slots Evolved . | . . . Power . | . . . Propulsion . | . . . Utility . | . . . Weapon . | . . . Parts Attached 32 | 5 20 7 Power 5 | 1 3 1 Engine 4 | 1 3 . Core 1 | . . 1 Reactor . | . . . Propulsion 12 | 2 7 3 Treads . | . . . Leg 12 | 2 7 3 Wheel . | . . . Hover . | . . . Flight . | . . . Utility 4 | . 4 . Device 3 | . 3 . Storage . | . . . Processor 1 | . 1 . Hackware . | . . . Protection . | . . . Artifact . | . . . Weapon 11 | 2 6 3 Energy Gun 7 | 1 3 3 Energy Cannon . | . . . Ballistic Gun 3 | 1 2 . Ballistic Cannon . | . . . Launcher . | . . . Special Weapon 1 | . 1 . Impact Weapon . | . . . Slashing Weapon . | . . . Piercing Weapon . | . . . Special Melee Weapon . | . . . Unidentified Prototypes . | . . . Parts Lost 2 | . . 2 Power 1 | . . 1 Propulsion 1 | . . 1 Utility . | . . . Weapon . | . . . Highest Loss Streak 2 | . . 2 To Critical Strikes . | . . . Average Backups 4 | . 4 5 Power . | . 1 1 Propulsion 1 | . 1 1 Utility . | . . 1 Weapon 1 | . 1 2 Tool/Special . | . . . Unused Backups 4 | . 1 3 Power 1 | . . 1 Propulsion 2 | . 1 1 Utility . | . . . Weapon 1 | . . 1 Tool/Special . | . . . Average Slot Usage (%) 94 | . 93 100 Engine 11 | . 14 1 Core 2 | . . 12 Leg 28 | . 28 28 Device 11 | . 11 14 Processor 11 | . 10 14 Energy Gun 17 | . 15 26 Ballistic Gun 9 | . 10 1 Special Weapon 1 | . 2 . Peak Build Rating 10 | 5 8 10 Average Rating 7 | 4 6 9 On Entrance 4 | . 5 7 Avg Prop Armor Cover (%) . | . . . Naked Turns . | . . . Heaviest Build 11 | 7 11 10 Greatest Support 20 | 20 20 20 Greatest Overweight (x) . | . . . Average Overweight (x) . | . . . Largest Inventory Capacity 5 | 5 5 5 Average Capacity 5 | 5 5 5 Most Carried 5 | 2 5 5 Average Carried 4 | 1 4 4 Final Capacity 5 | 5 5 5 Final Carried 5 | 2 5 5 Class Distribution -------------------- 86% | Scavenger-Mutant 13% | Mutant Dominant Class ---------------- Scavenger-Mutant | -10/Materials Scavenger-Mutant | -10/Mines Resources | -11 -10 -10 ----------- Run | Yrd Mat Min Matter Collected 668 | 165 408 95 Remotely . | . . . Salvage Created 807 | . 636 171 Parts 55 | . 44 11 Haulers Intercepted . | . . . Recyclers Shooed . | . . . Parts Field Recycled . | . . . Retrieved Matter . | . . . Parts Self-Destructed . | . . . Prevented . | . . . Parts Restored . | . . . Kills | -11 -10 -10 ------- Run | Yrd Mat Min Combat Hostiles Destroyed 22 | . 17 5 Guns 22 | . 17 5 Classes Destroyed 5 | . 4 1 Worker 2 | . 2 . Watcher 3 | . 3 . Swarmer 6 | . 6 . Grunt 15 | . 11 4 Assembled 1 | . . 1 Best Kill Streak 4 | . 4 2 Combat Bots Only 4 | . 4 2 Max Kills in Single Turn 1 | . 1 1 Gunslinging . | . . . Exploded . | . . . Melee . | . . . Uniques/NPCs Destroyed . | . . . Combat | -11 -10 -10 -------- Run | Yrd Mat Min Hostile Shots Fired 121 | . 76 45 Missed 31 | . 20 11 Hits 90 | . 56 34 Melee 8 | . . 8 Projectile 82 | . 56 26 Critical Strikes 1 | . 1 . Damage Taken 1265 | . 686 579 Core 257 | . 100 157 Absorbed by Shields . | . . . Core Remaining (%) 100 | 100 . . Volleys Fired 104 | . 86 18 Largest 2 | . 2 2 Hottest 165 | . 165 105 Shots Fired 200 | . 169 31 Gun 192 | . 161 31 Cannon . | . . . Launcher . | . . . Special 8 | . 8 . Kinetic 78 | . 73 5 Thermal 122 | . 96 26 Explosive . | . . . Electromagnetic . | . . . Robot Hit Streak 12 | . 12 7 Robot Miss Streak 3 | . 3 3 Penetration Max . | . . . Secondary Targets 6 | . 3 3 Max Gunslinging Chain 1 | . 1 1 Shots Hit Robots 100 | . 78 22 Core Hits 51 | . 39 12 Critical Kills . | . . . Critical Parts Destroyed . | . . . Critical Strikes . | . . . Melee Attacks . | . . . Impact . | . . . Slashing . | . . . Piercing . | . . . Sneak Attacks . | . . . Combat Hostiles . | . . . Follow-up Attacks . | . . . Damage Inflicted 1126 | . 830 296 Guns 1109 | . 830 279 Cannons . | . . . Explosions . | . . . Melee . | . . . Ramming 17 | . . 17 Kinetic 379 | . 327 52 Thermal 730 | . 503 227 Explosive . | . . . Electromagnetic . | . . . Impact . | . . . Slashing . | . . . Piercing . | . . . Highest Corruption . | . . . Average Corruption . | . . . Corruption Purged . | . . . Corruption Blocked . | . . . Overload Shots . | . . . Overflow Damage . | . . . Projectiles . | . . . Explosions . | . . . Melee . | . . . Knockbacks . | . . . Impact . | . . . Kinetic . | . . . Secondary . | . . . Self-Inflicted Damage . | . . . Shots . | . . . Rammed . | . . . Targets Rammed 7 | . . 7 Kicked 7 | . . 7 Crushed . | . . . Highest Temperature 450 | . 225 450 Average Temperature 80 | . 54 196 Received Heat Transfer 417 | . 264 153 Effects 2 | . . 2 Shutdowns 2 | . . 2 Siege Activations . | . . . Martial Activations . | . . . Shielding Activations . | . . . Robots Disrupted . | . . . Combat Hostiles . | . . . Robots Corrupted . | . . . Combat Hostiles . | . . . Parts Fried . | . . . Impact Corruptions . | . . . Robots Melted . | . . . Combat Hostiles . | . . . Parts Melted . | . . . Heat Transferred 1681 | . 1171 510 Parts Sabotaged . | . . . Parts Stolen . | . . . Parts Stripped . | . . . Power Chain Reactions . | . . . Alert | -11 -10 -10 ------- Run | Yrd Mat Min Maximum Alert Level 1 | . 1 . Low Security (%) 96 | 100 95 100 Level 1 3 | . 4 . Level 2 . | . . . Level 3 . | . . . Level 4 . | . . . Level 5 . | . . . High Security . | . . . Max Security . | . . . Peak Influence 222 | . 222 66 Initial 16 | . . 16 Average 90 | . 107 22 Influence Increases 643 | . 543 100 Destroy 0b10 Robot/C 420 | . 340 80 Destroy 0b10 Robot/NC 25 | . 25 . Destroy Leader 96 | . 76 20 Successful Hack 6 | . 6 . Disable Machine 15 | . 15 . Destroy Structure 6 | . 6 . Lose Combat Pursuer 75 | . 75 . Influence Decreases 643 | . 500 143 Entered New Map 27 | . . 27 Time Decay 616 | . 500 116 Squads Dispatched 3 | . 3 . Investigation . | . . . Extermination . | . . . Reinforcement 3 | . 3 . Assault . | . . . Garrison . | . . . Intercept . | . . . Searches Triggered . | . . . Construction Impeded . | . . . Haulers Reinforced . | . . . Active Scanning Responses . | . . . Cargo Convoy Interrupts . | . . . Stealth | -11 -10 -10 --------- Run | Yrd Mat Min Distress Signals 5 | . 5 . Communications Jammed . | . . . Distress Signals . | . . . Times Spotted 44 | . 34 10 Peak Tracking Total 6 | . 6 6 Tactical Retreats 5 | . 4 1 Traps | -11 -10 -10 ------- Run | Yrd Mat Min Traps Triggered 2 | . 2 . Indirectly . | . . . Trap Hack Attempts . | . . . Triggered . | . . . Disarmed . | . . . Reprogrammed . | . . . Reused . | . . . Traps Extracted . | . . . Installed . | . . . Triggered . | . . . Machines | -11 -10 -10 ---------- Run | Yrd Mat Min Machines Disabled 1 | . 1 . Max in Single Turn 1 | . 1 . Machines Repaired . | . . . Machines Dismantled . | . . . Machines Sabotaged . | . . . Overloaded Fab Kills . | . . . Hacking | -11 -10 -10 --------- Run | Yrd Mat Min Machines Accessed 2 | . 2 . Terminals 2 | . 2 . Fabricators . | . . . Repair Stations . | . . . Recycling Units . | . . . Scanalyzers . | . . . Garrison Access . | . . . Total Hacks 4 | . 4 . Successful 1 | . 1 . Failed 3 | . 3 . Catastrophic 1 | . 1 . Database Lockouts . | . . . Manual 7 | . 7 . Terminals 4 | . 4 . Fabricators . | . . . Repair Stations . | . . . Recycling Units . | . . . Scanalyzers . | . . . Garrison Access . | . . . Terminal Hacks 1 | . 1 . Robot Analysis 1 | . 1 . Fabricator Hacks . | . . . Repair Station Hacks . | . . . Recycling Unit Hacks . | . . . Scanalyzer . | . . . Garrison Access Hacks . | . . . Unauthorized Hacks . | . . . Terminals . | . . . Fabricators . | . . . Repair Stations . | . . . Recycling Units . | . . . Scanalyzers . | . . . Garrison Access . | . . . Data Cores Recovered . | . . . Used . | . . . Hacking Detections 3 | . 3 . Full Trace Events . | . . . Feedback Events . | . . . Feedback Blocked . | . . . Robot Schematics Acquired . | . . . Robots Built . | . . . Authchips . | . . . Time . | . . . Total Robot Build Rating . | . . . Part Schematics Acquired . | . . . Parts Built . | . . . Authchips . | . . . Time . | . . . Total Part Build Rating . | . . . Part Studies Acquired . | . . . Parts Repaired . | . . . Time . | . . . Parts Recycled . | . . . Recycled Matter . | . . . Retrieved Matter . | . . . Retrieved Components . | . . . Parts Scanalyzed . | . . . Part Schematics Acquired . | . . . Parts Damaged . | . . . Bothacking | -11 -10 -10 ------------ Run | Yrd Mat Min Used RIF Installer . | . . . Robots Hacked . | . . . Non-combat . | . . . Combat . | . . . Robot Hacks Applied . | . . . Relay Couplers Released . | . . . Fabnet Peak Effective % . | . . . Robots Rewired . | . . . Allies Hacked . | . . . Hacks Repelled . | . . . Allies | -11 -10 -10 -------- Run | Yrd Mat Min Total Allies . | . . . Largest Group . | . . . Highest-Rated Group . | . . . Highest-Rated Ally . | . . . Total Orders . | . . . Ally Attacks . | . . . Total Damage . | . . . Kills . | . . . Allies Corrupted . | . . . Allies Melted . | . . . Intel | -11 -10 -10 ------- Run | Yrd Mat Min Active Infowar (turns) 1439 | . 1144 295 Sensors 1403 | . 1108 295 ECM 36 | . 36 . Robot Analysis Total 1 | . 1 . Derelict Logs Recovered . | . . . Drone Launches . | . . . Drone Recoveries . | . . . Exploration | -11 -10 -10 ------------- Run | Yrd Mat Min Turns Passed 1837 | 58 1484 295 Spaces Moved 1144 | 43 916 185 Core 4 | 4 . . Treads . | . . . Legs 1140 | 39 916 185 Wheels . | . . . Hover . | . . . Flight . | . . . Fastest Speed 50 | 50 120 120 Average Speed 119 | 113 120 120 Slowest Speed 120 | 120 120 120 Overloaded Moves . | . . . Propulsion Burnouts . | . . . Robots Hopped . | . . . Potential Cave-ins . | . . . Cave-ins Triggered . | . . . Exploration Rate (%) 44 | 3 87 42 Regions Visited 2 Branch Regions 1 Pre-discovered Areas . | . . . Known Exits Taken 1 | . 1 . Unknown Exits Taken 1 | 1 . . Scrap Searched . | . . . Spaces Dug 7 | . 7 . Terrain Destroyed 7 | . 7 . Melee . | . . . Projectile 7 | . 7 . AOE . | . . . Terrain Rammed . | . . . Walls Destroyed . | . . . Machines Disabled . | . . . Actions | -11 -10 -10 --------- Run | Yrd Mat Min Total 1411 | 50 1131 230 Wait 85 | . 81 4 Move 1142 | 42 915 185 Hop . | . . . Pick Up 9 | 3 5 1 Fast Attach 11 | 4 6 1 Attach 2 | 1 1 . Detach 2 | . 2 . Swap 24 | . 18 6 Drop 25 | . 17 8 Fire 104 | . 86 18 Melee . | . . . Ram . | . . . Kick 7 | . . 7 Crush . | . . . Escape Stasis . | . . . Rewire . | . . . Trap . | . . . Miscellaneous . | . . . Route ------- -11/Scrapyard -10/Materials (discovered 4 exits: *Mat x3 / *Min) -10/Mines (discovered 1 exit: *Mat) History --------- Turn | Location | Event 12 | -11/Scrapyard | Discovered new exit (range 16) 59 | -11/Scrapyard | Entered Materials 502 | -10/Materials | Discovered new exit (range 16) 518 | -10/Materials | Identified exit to Materials 555 | -10/Materials | Build established: Scavenger-Mutant 700 | -10/Materials | Discovered exit to Materials (range 14) 844 | -10/Materials | Discovered exit to Materials (range 16) 1531 | -10/Materials | Discovered new exit (range 9) 1540 | -10/Materials | Identified exit to Mines 1543 | -10/Materials | Entered Mines 1656 | -10/Mines | Assembled infested the area 1734 | -10/Mines | Core integrity fell below 50% 1803 | -10/Mines | Discovered exit to Materials (range 15) 1837 | -10/Mines | Core integrity fell below 20% 1838 | -10/Mines | Destroyed by as-47146 with Assembled Blade Last Messages --------------- 01664_ K-01 Serf collects debris. 01729_ G-47 Trooper destroyed. 01729_ Switching to secondary target: G-34 Mercenary. 01738_ Power failure, Lgt. Nuclear Core shutdown. 01749_ G-34 Mercenary destroyed. 01756_ Dropped Particle Gun. 01757_ Acquired 20 matter. 01761_ Dropped Aluminum Leg. 01771_ Dropped Ion Engine. 01774_ Acquired Ion Engine. 01798_ T-07 Excavator is excavating. 01803_ EXIT=FOUND: MATERIALS 01827_ Kicked as-95294 out of the way. 01830_ Kicked as-95294. 01835_ Aluminum Leg destroyed. 01835_ Lgt. Nuclear Core destroyed. 01836_ as-95294 destroyed. 01836_ Switching to secondary target: as-47146. Map ----- +----------------------------------------------------+ | | | | | | | | | | | | | | | ?????????????????????????????????????? | | ???#############???????????????####?## | | ??## ##?????????????## ### | | ??# ##????????????# | | ??# #######??????# | | ???# * #??????### | | ???# [ #????????## | | ???# ####%=#?????????## | | ???# ##??#% #########??## | | ???# #??##[ ##??# # | | ???## #?## #??# # | | ????# #### #??# # | | ????# ##?# ### ##??# | | ????## ##a#?# ## #?# #???### | | ?????## ## #?# ### #?# #?????? | | ??????### x## #?# ##?#x#?# #?????? | | ????????# ## #?## ##??# #?# #?????# | | ????????# ##a#??####??### ### ###??## | | ????????# ##@#????????# #### | | ????????# x##%#????????# ## ## | | ?????#### ## ##???????# ## #### ##### | | ?????# x #???????# ## #??# #???# | | ?????# ## #???????# ## #??# #???? | | ?????# ###### #??????? ??# ### | | ?????# #????# |#??????? ??### | | ?????# #????# !%#?????? ????# | | ?????# ????# =*#?????? ???##### | | ????? ?????###??????? ### ???????# | | ????? ???????????????###???#???????# | | ????? ?????????????????????????????? | | ?????# ?????????????????????????????? | | ?????? ?????????????????????????????? | | ?????? ????????????????????????????? | | ?????? ????????????????????????????? | | ?????? ????????????????????????????? | | ?????? ????????????????????????????? | | ??????< ????????????????????????????? | | ?????? ???????????????????????????## | | ????????????????????????????????????# | | ???????????????????????????????????# | | ?????????????????????????????????# | | ????????????????????????????????# | | ????????????????????????????????# | +----------------------------------------------------+ Best States ------------- Heat Dissipation 25 Energy Generation 14 Energy Capacity 250 Matter Stores 300 Matter Capacity 300 Sight Range 16 Robot Scan Range 14 Terrain Scan Density 10 ECM Strength 2 Evasion (%) 55 Item Schematics ----------------- None Robot Schematics ------------------ None Fabricated ------------ Nothing Repaired ---------- Nothing Studied --------- None Alien Tech Used ----------------- None Achievements -------------- None Challenges ------------ None Game ------ Seed PropulsionStorageSpecial Manual? 0 Play Time 00:19:18 Cumulative 10.3 hours Start 2026.08.28 @ 15:59:31 End 2026.08.28 @ 16:16:03 Sessions 1 Manual Loads 0 Difficulty Rogue Special Mode None Game No. 15 Rogue 15 Adventurer 0 Explorer 0 Win Type - Total 0 Types 0/0/0/0/0/0/0/0/0/0 Lore% 8 Gallery% 11 Achievement% 10 Wizard Run 0 Options --------- Layout 1 ASCII 0 Keyboard 1 Movement Arrows Keybinds 1 Fullscreen 1 Font 32/SmallcapsGlow Map View 50x35 Zoom Use 0% Tactical HUD 1 Map Filters NONE Filters NONE Steam 1 RUN: f4bef0b7-a9da-4a1a-8fd7-0ab8084a3582